Cogmind - Beta 16 @@@ ROGUE MODE // 2026.02.03 @ 18:54:18 Player: Darkfire Result: Destroyed by 1H-P0Q(R) with Subdweller Laser Performance ------------- Evolutions (0) 0 Regions Visited (2) 400 Robots Destroyed (15) 75 Value Destroyed (330) 330 Prototype IDs (2) 40 Alien Tech Used (0) 0 Bonus (0) 0 TOTAL SCORE: 845 Bonus ------- None Cogmind --------- Core Integrity 0/250 Matter 198/300 Energy 125/125 System Corruption 2% Temperature Cool (6) Movement Core (50) Location -10/Subcaves Parts ------- > --- POWER (1) -------- Light Ion Engine > --- PROPULSION (2) --- (None) > --- UTILITY (2) ------ Signal Interpreter > --- WEAPON (2) ------- (None) > --- INVENTORY (5) ---- Subdweller Power Source Scrap Shield Fragment (49) Peak State ------------ > --- POWER ------------ Ion Engine > --- PROPULSION ------- Light Treads Light Treads > --- UTILITY ---------- Heat Sink Improved Terrain Scanner > --- WEAPON ----------- Assault Rifle Grenade Launcher > --- INVENTORY -------- Light Ion Engine Light Treads Medium Laser Assault Rifle [Rating: 9] Favorites ----------- Power Ion Engine Engine Ion Engine Propulsion Light Treads Treads Light Treads Wheel Wheel Utility Heat Sink Device Heat Sink Storage Small Storage Unit Processor Signal Interpreter Protection Light Armor Plating Weapon Assault Rifle Energy Gun Medium Laser Ballistic Gun Assault Rifle Launcher Grenade Launcher Build | -11 -10 -10 ------- Run | Yrd Mat Sub Slots Evolved . | . . . Power . | . . . Propulsion . | . . . Utility . | . . . Weapon . | . . . Parts Attached 18 | 8 8 2 Power 2 | 2 . . Engine 2 | 2 . . Core . | . . . Reactor . | . . . Propulsion 4 | 3 . 1 Treads 3 | 2 . 1 Leg . | . . . Wheel 1 | 1 . . Hover . | . . . Flight . | . . . Utility 8 | 1 7 . Device 4 | . 4 . Storage 1 | 1 . . Processor 1 | . 1 . Hackware . | . . . Protection 2 | . 2 . Artifact . | . . . Weapon 4 | 2 1 1 Energy Gun 1 | . . 1 Energy Cannon . | . . . Ballistic Gun 2 | 2 . . Ballistic Cannon . | . . . Launcher 1 | . 1 . Special Weapon . | . . . Impact Weapon . | . . . Slashing Weapon . | . . . Piercing Weapon . | . . . Special Melee Weapon . | . . . Unidentified Prototypes . | . . . Parts Lost 10 | . 1 9 Power 1 | . . 1 Propulsion 3 | . . 3 Utility 2 | . 1 1 Weapon 4 | . . 4 Highest Loss Streak 5 | . 1 5 To Critical Strikes . | . . . Average Backups 3 | 3 3 2 Power . | . 1 1 Propulsion . | 1 . . Utility . | . . . Weapon 1 | 1 1 1 Tool/Special . | . . . Unused Backups 3 | 2 . 1 Power 1 | . . 1 Propulsion 2 | 2 . . Utility . | . . . Weapon . | . . . Tool/Special . | . . . Average Slot Usage (%) 90 | . 96 83 Engine 13 | . 14 12 Treads 26 | . 28 25 Device 10 | . 12 7 Storage 2 | . 4 . Processor 8 | . 3 14 Protection 2 | . 3 . Energy Gun 1 | . . 3 Ballistic Gun 15 | . 19 9 Launcher 9 | . 8 9 Peak Build Rating 9 | 6 9 7 Average Rating 6 | 3 6 5 On Entrance 4 | . 6 7 Avg Prop Armor Cover (%) . | . . . Naked Turns . | . . . Heaviest Build 17 | 14 17 11 Greatest Support 40 | 40 40 40 Greatest Overweight (x) 3 | 3 . . Average Overweight (x) . | . . . Largest Inventory Capacity 8 | 8 8 5 Average Capacity 5 | 7 6 5 Most Carried 6 | 6 5 5 Average Carried 3 | 3 3 3 Final Capacity 8 | 8 5 5 Final Carried 4 | 2 4 2 Class Distribution -------------------- 100% | Mutant Dominant Class ---------------- Mutant | -10/Materials Mutant | -10/Subcaves Resources | -11 -10 -10 ----------- Run | Yrd Mat Sub Matter Collected 646 | 296 209 141 Remotely . | . . . Salvage Created 419 | 99 244 76 Parts 27 | . 23 4 Haulers Intercepted . | . . . Recyclers Shooed . | . . . Parts Field Recycled . | . . . Retrieved Matter . | . . . Parts Self-Destructed . | . . . Prevented . | . . . Parts Restored . | . . . Kills | -11 -10 -10 ------- Run | Yrd Mat Sub Combat Hostiles Destroyed 10 | . 8 2 Guns 7 | . 5 2 AOE 3 | . 3 . Classes Destroyed 8 | 1 5 2 Builder 1 | . 1 . Tunneler 1 | . 1 . Recycler 1 | 1 . . Watcher 2 | . 2 . Swarmer 3 | . 3 . Grunt 5 | . 5 . Artisan 1 | . . 1 Subdweller 2 | . . 2 Best Kill Streak 3 | 1 3 2 Combat Bots Only 3 | . 3 2 Max Kills in Single Turn 3 | 1 3 1 Gunslinging . | . . . Exploded 2 | . 2 . Melee . | . . . Uniques/NPCs Destroyed . | . . . Combat | -11 -10 -10 -------- Run | Yrd Mat Sub Hostile Shots Fired 87 | . 39 48 Missed 15 | . 6 9 Hits 72 | . 33 39 Projectile 72 | . 33 39 Damage Taken 1251 | . 404 847 Core 253 | . 94 159 Absorbed by Shields . | . . . Core Remaining (%) 100 | 100 . . Volleys Fired 58 | 3 30 25 Largest 2 | 2 2 2 Hottest 80 | 40 50 80 Shots Fired 107 | 6 59 42 Gun 94 | 6 53 35 Cannon . | . . . Launcher 13 | . 6 7 Special . | . . . Kinetic 78 | 6 53 19 Thermal 16 | . . 16 Explosive 13 | . 6 7 Electromagnetic . | . . . Robot Hit Streak 23 | 3 7 23 Robot Miss Streak 6 | 1 6 1 Penetration Max . | . . . Secondary Targets . | . . . Shots Hit Robots 66 | 5 32 29 Core Hits 27 | 1 17 9 Critical Kills . | . . . Critical Parts Destroyed . | . . . Critical Strikes 1 | . . 1 Burn 1 | . . 1 Melee Attacks . | . . . Impact . | . . . Slashing . | . . . Piercing . | . . . Sneak Attacks . | . . . Combat Hostiles . | . . . Follow-up Attacks . | . . . Damage Inflicted 1135 | 63 692 380 Guns 610 | 63 444 103 Cannons . | . . . Explosions 524 | . 247 277 Melee . | . . . Ramming 1 | . 1 . Kinetic 547 | 63 444 40 Thermal 63 | . . 63 Explosive 524 | . 247 277 Electromagnetic . | . . . Impact . | . . . Slashing . | . . . Piercing . | . . . Highest Corruption 2 | . 2 2 Average Corruption 2 | . 2 2 Corruption Purged . | . . . Corruption Blocked . | . . . Effects 8 | . 2 6 Message Errors 2 | . . 2 Matter Fused 2 | . 1 1 Heat Flow Errors 1 | . . 1 Energy Discharges 1 | . 1 . Data Loss (minor) 2 | . . 2 Overload Shots . | . . . Overflow Damage 13 | . 10 3 Projectiles . | . . . Explosions 13 | . 10 3 Melee . | . . . Knockbacks . | . . . Impact . | . . . Kinetic . | . . . Secondary . | . . . Self-Inflicted Damage 98 | . 57 41 Shots 4 | . 2 2 Rammed 1 | . 1 . Targets Rammed 1 | . 1 . Kicked . | . . . Crushed . | . . . Highest Temperature 151 | . 2 151 Average Temperature 15 | . 1 78 Received Heat Transfer 396 | . 162 234 Siege Activations . | . . . Martial Activations . | . . . Shielding Activations . | . . . Robots Disrupted . | . . . Combat Hostiles . | . . . Robots Corrupted . | . . . Combat Hostiles . | . . . Parts Fried . | . . . Impact Corruptions . | . . . Robots Melted . | . . . Combat Hostiles . | . . . Parts Melted 3 | . . 3 Heat Transferred 259 | . . 259 Parts Sabotaged . | . . . Parts Stolen . | . . . Parts Stripped . | . . . Power Chain Reactions . | . . . Alert | -11 -10 -10 ------- Run | Yrd Mat Sub Maximum Alert Level . | . . . Low Security (%) 100 | 100 100 . Level 1 . | . . . Level 2 . | . . . Level 3 . | . . . Level 4 . | . . . Level 5 . | . . . High Security . | . . . Max Security . | . . . Peak Influence 131 | 5 131 . Initial . | . . . Average 46 | . 58 . Influence Increases 271 | 5 266 . Destroy 0b10 Robot/C 160 | . 160 . Destroy 0b10 Robot/NC 25 | 5 20 . Destroy Leader 34 | . 34 . Successful Hack 14 | . 14 . Destroy Structure 38 | . 38 . Influence Decreases 271 | 5 207 59 Entered New Map 29 | . . 29 Time Decay 232 | 5 197 30 Lost Part 10 | . 10 . Squads Dispatched 2 | . 2 . Investigation 1 | . 1 . Extermination . | . . . Reinforcement 1 | . 1 . Assault . | . . . Garrison . | . . . Intercept . | . . . Searches Triggered . | . . . Construction Impeded . | . . . Haulers Reinforced . | . . . Active Scanning Responses . | . . . Cargo Convoy Interrupts . | . . . Stealth | -11 -10 -10 --------- Run | Yrd Mat Sub Distress Signals 1 | . 1 . Communications Jammed . | . . . Distress Signals . | . . . Times Spotted 16 | . 13 3 Peak Tracking Total 5 | . 5 1 Tactical Retreats . | . . . Traps | -11 -10 -10 ------- Run | Yrd Mat Sub Traps Triggered 2 | . 2 . Indirectly . | . . . Trap Hack Attempts . | . . . Triggered . | . . . Disarmed . | . . . Reprogrammed . | . . . Reused . | . . . Traps Extracted . | . . . Installed . | . . . Triggered . | . . . Machines | -11 -10 -10 ---------- Run | Yrd Mat Sub Machines Disabled . | . . . Max in Single Turn . | . . . Machines Repaired . | . . . Machines Dismantled . | . . . Machines Sabotaged . | . . . Overloaded Fab Kills . | . . . Hacking | -11 -10 -10 --------- Run | Yrd Mat Sub Machines Accessed 4 | . 4 . Terminals 2 | . 2 . Fabricators . | . . . Repair Stations 1 | . 1 . Recycling Units 1 | . 1 . Scanalyzers . | . . . Garrison Access . | . . . Total Hacks 14 | . 14 . Successful 7 | . 7 . Failed 7 | . 7 . Catastrophic . | . . . Database Lockouts . | . . . Manual . | . . . Terminals 7 | . 7 . Fabricators . | . . . Repair Stations 2 | . 2 . Recycling Units 5 | . 5 . Scanalyzers . | . . . Garrison Access . | . . . Terminal Hacks 4 | . 4 . Prototype ID Bank 1 | . 1 . Alert Level 1 | . 1 . Dispatch Records 1 | . 1 . Registered Prototypes 1 | . 1 . Fabricator Hacks . | . . . Repair Station Hacks . | . . . Recycling Unit Hacks 3 | . 3 . Report Inventory 1 | . 1 . Retrieve Matter 1 | . 1 . Retrieve Components 1 | . 1 . Scanalyzer . | . . . Garrison Access Hacks . | . . . Unauthorized Hacks . | . . . Terminals . | . . . Fabricators . | . . . Repair Stations . | . . . Recycling Units . | . . . Scanalyzers . | . . . Garrison Access . | . . . Data Cores Recovered . | . . . Used . | . . . Hacking Detections 3 | . 3 . Full Trace Events . | . . . Feedback Events . | . . . Feedback Blocked . | . . . Robot Schematics Acquired . | . . . Robots Built . | . . . Authchips . | . . . Time . | . . . Total Robot Build Rating . | . . . Part Schematics Acquired . | . . . Parts Built . | . . . Authchips . | . . . Time . | . . . Total Part Build Rating . | . . . Part Studies Acquired . | . . . Parts Repaired . | . . . Time . | . . . Parts Recycled . | . . . Recycled Matter . | . . . Retrieved Matter 46 | . 46 . Retrieved Components 10 | . 10 . Parts Scanalyzed . | . . . Part Schematics Acquired . | . . . Parts Damaged . | . . . Bothacking | -11 -10 -10 ------------ Run | Yrd Mat Sub Used RIF Installer . | . . . Robots Hacked . | . . . Non-combat . | . . . Combat . | . . . Robot Hacks Applied . | . . . Relay Couplers Released . | . . . Fabnet Peak Effective % . | . . . Robots Rewired . | . . . Allies Hacked . | . . . Hacks Repelled . | . . . Allies | -11 -10 -10 -------- Run | Yrd Mat Sub Total Allies . | . . . Largest Group . | . . . Highest-Rated Group . | . . . Highest-Rated Ally . | . . . Total Orders . | . . . Ally Attacks . | . . . Total Damage . | . . . Kills . | . . . Allies Corrupted . | . . . Allies Melted . | . . . Intel | -11 -10 -10 ------- Run | Yrd Mat Sub Active Infowar (turns) 116 | . 116 . Terrain 18 | . 18 . Seismic 98 | . 98 . Robot Analysis Total . | . . . Derelict Logs Recovered . | . . . Drone Launches . | . . . Drone Recoveries . | . . . Exploration | -11 -10 -10 ------------- Run | Yrd Mat Sub Turns Passed 954 | 129 478 347 Spaces Moved 472 | 74 230 168 Core 36 | 34 . 2 Treads 430 | 34 230 166 Legs . | . . . Wheels 6 | 6 . . Hover . | . . . Flight . | . . . Fastest Speed 50 | 50 160 50 Average Speed 154 | 125 160 158 Slowest Speed 200 | 200 160 160 Overloaded Moves . | . . . Propulsion Burnouts . | . . . Robots Hopped . | . . . Potential Cave-ins . | . . . Cave-ins Triggered . | . . . Exploration Rate (%) 22 | 5 48 13 Regions Visited 2 Branch Regions 1 Pre-discovered Areas . | . . . Known Exits Taken 1 | . 1 . Unknown Exits Taken 1 | 1 . . Scrap Searched . | . . . Spaces Dug . | . . . Terrain Destroyed 54 | . 33 21 Melee . | . . . Projectile . | . . . AOE 54 | . 33 21 Terrain Rammed . | . . . Walls Destroyed . | . . . Machines Disabled . | . . . Actions | -11 -10 -10 --------- Run | Yrd Mat Sub Total 594 | 107 282 205 Wait 2 | . . 2 Move 470 | 73 229 168 Hop . | . . . Pick Up 22 | 11 9 2 Fast Attach 1 | 1 . . Attach 21 | 10 6 5 Detach 5 | 4 . 1 Swap 5 | 1 2 2 Drop 9 | 4 5 . Fire 58 | 3 30 25 Melee . | . . . Ram . | . . . Kick . | . . . Crush 1 | . 1 . Escape Stasis . | . . . Rewire . | . . . Trap . | . . . Miscellaneous . | . . . Route ------- -11/Scrapyard -10/Materials (discovered 3 exits: [*Mat] / [*Min] / *Sub) -10/Subcaves History --------- Turn | Location | Event 9 | -11/Scrapyard | Discovered new exit (range 15) 130 | -11/Scrapyard | Entered Materials 324 | -10/Materials | Build established: Mutant 416 | -10/Materials | Discovered new exit (range 16) 485 | -10/Materials | Discovered new exit (range 3) 566 | -10/Materials | Discovered new exit (range 10) 606 | -10/Materials | Identified exit to Subcaves 608 | -10/Materials | Entered Subcaves 658 | -10/Subcaves | Curiously followed by a Cobbler waking with a query about "LVR3C" 823 | -10/Subcaves | Core integrity fell below 50% 849 | -10/Subcaves | Lost 5 parts (1p1n1u2w) 910 | -10/Subcaves | Core integrity fell below 20% 930 | -10/Subcaves | Lost 3 parts (1n2w) 946 | -10/Subcaves | Disturbed a concealed Subdweller 955 | -10/Subcaves | Destroyed by 1H-P0Q(R) with Subdweller Laser Last Messages --------------- Assault Rifle destroyed. D1FVQ&ZV2FMEW#1FDIA,L,C7UWO%II,PTPC Disposable Heat Sink melted. Sub. Optics melted. Sub. Laser melted. X9-FK2(R) destroyed. Acquired Scrap Shield Fragment. Subatomizers dissect the Wheel. Acquired 9 matter. Acquired 14 matter. Subatomizers dissect the Wheel. The unstable cave ceiling collapses. System corrupted: Component data lost. Subatomizers dissect the Wheel, destroying it. Subatomizers dissect the Sub. Monowheel. Lgt. Treads destroyed. Grenade Launcher destroyed. Destroyed Grenade Launcher. Med. Laser destroyed. Lgt. Treads destroyed. Map ----- +----------------------------------------------------+ | | | | | | | | | ????????????????????????????????????????????????? | | ????????????????????????????????????????????????? | | ????????????????????????????????????????????????? | | ????????????????????????????????????????????????? | | ????????????????????????????????????????????????? | | ????????????????????????????????????????????????? | | ????????????????????????????????????????????????? | | ????????????????????????????????????????????????? | | ????????????????????????????????????????????????? | | ????????????????????????????????????????????????? | | ????????????????????????????????????????????????? | | ????????????????????????????????????????????????? | | ????????????????????????????????????????????????? | | ????????????????????????????????????????????????? | | ????????????????????????????????????????????????? | | ???????????????????????????##???????????????????? | | ??????????????????????????? ##???????????????? | | ?????????????????????????? #???????????####? | | ?????????????????????????? #???????? ?## ## | | ??????????????????###???? #??????? ## | | ??????????????????# ##?## #??????? | | ??????????????????# ###@ #???????? | | ??????????????????# ##???????? | | ??????????????????# #????????? | | ?????????????????## #?###????? | | ?????????????????# ####?# ###????# | | ???????????###??## ##????# ##???# | | ???????????#"& ##< ##???### ##### | | ?????????????# ##???## ## | | ?????????????##<#< ##????# | | ??????????????### R####### ## | | ???????????????# ## #### ##### | | ???????????????## #??####???# | | ???????????????# #?????????# ### | | ???????????????## #### # #?????????###?# | | ????????????????## #??# #?????????????# | | ?????????????????# #?# #????????????# | | ?????????????????# ?# ???????????## | | ????????????????? ?## ??????????## | | ????????????????#### #?# #????##"??# # | | ???????????????????####?## #????# "" # | | ?????????????????????????### #????# " | | ???????????????????????????# #????# | | ???????????????????????????# ###??# | | ???????????????????????????# ##???# " | | ???????????????????????????## ##????# " | +----------------------------------------------------+ Best States ------------- Heat Dissipation 35 Energy Generation 10 Energy Capacity 250 Matter Stores 300 Matter Capacity 300 Sight Range 16 Terrain Scan Range 16 Terrain Scan Density 10 Armor Coverage 150 Evasion (%) 50 Recoil Reduction 2 Item Schematics ----------------- None Robot Schematics ------------------ None Fabricated ------------ Nothing Repaired ---------- Nothing Studied --------- None Alien Tech Used ----------------- None Achievements -------------- None Challenges ------------ None Game ------ Seed NovaRemoteLaser Manual? 0 Play Time 00:17:55 Cumulative 6.4 hours Start 2026.02.03 @ 17:43:23 End 2026.02.03 @ 18:54:18 Sessions 1 Manual Loads 0 Difficulty Rogue Special Mode None Game No. 7 Rogue 7 Adventurer 0 Explorer 0 Win Type - Total 0 Types 0/0/0/0/0/0/0/0/0/0 Lore% 5 Gallery% 10 Achievement% 9 Wizard Run 0 Options --------- Layout 1 ASCII 0 Keyboard 0 Movement Mouse Keybinds 0 Fullscreen 2 Font 24/Smallcaps Map View 76x35 Zoom Use 0% Tactical HUD 0 Map Filters NONE Filters NONE Steam 1 RUN: 932a3bf8-be5a-45d7-8a45-f8c2090b213d